[Event "DFMMLV 2024"]
[Site "Braunfels"]
[Date "2024.05.30"]
[Round "1.1"]
[White "Klek, Hanna Marie"]
[Black "Miljkovic, Jovana"]
[Result "1-0"]
[ECO "B80"]
[WhiteElo "2294"]
[BlackElo "2026"]
[Annotator "RC"]
[PlyCount "49"]
[EventDate "2024.05.30"]
[EventType "team-tourn"]
[EventCountry "GER"]
[SourceTitle "playchess.com"]
[Source "ChessBase"]
[SourceQuality "1"]
[TimeControl "40/5400+30:1800+30"]

1. e4 {[%emt 0:00:03]} c5 {[%emt 0:00:04]} 2. Nf3 {[%emt 0:00:04]} d6 {[%emt 0:00:04]} 3. d4 {[%emt 0:00:04]} cxd4 {[%emt 0:00:03]} 4. Nxd4 {[%emt 0:00:05]} Nf6 {[%emt 0:00:03]} 5. Nc3 {[%emt 0:00:07]} a6 {[%emt 0:00:03]} 6. Be3 {[%emt 0:00:06]} e6 {[%emt 0:00:05]} 7. Qf3 {[%emt 0:00:07]} Qc7 {[%emt 0:01:24]} 8. g4 {[%emt 0:00:38]} b5 {[%emt 0:02:34]} 9. g5 {[%emt 0:00:07]} Nfd7 {[%emt 0:00:36]} 10. a3 {[%emt 0:00:08]} Bb7 {[%emt 0:01:39]} 11. Qh3 {[%emt 0:02:13]} g6 {[%emt 0:12:41]} 12. O-O-O {[%emt 0:04:29]} e5 {[%emt 0:07:51]} 13. Nb3 {[%emt 0:10:45]} Nb6 {[%emt 0:02:59]} 14. f4 {[%emt 0:07:09]} N8d7 {[%emt 0:03:18]} 15. f5 {[%emt 0:06:30]} Rc8 {[%emt 0:13:08]} 16. fxg6 {[%emt 0:06:17]} Bxe4 {[%emt 0:16:45]} 17. gxf7+ {[%emt 0:00:36]} Kd8 {[%emt 0:00:46]} 18. g6 {[%emt 0:09:22]} Bxg6 {[%emt 0:05:46]} 19. Bg5+ {[%emt 0:01:11]} Be7 {[%emt 0:00:22]} 20. Qh4 {[%emt 0:01:04]} Nb8 {[%emt 0:05:45]} 21. Na5 {[%emt 0:04:16]} Bxf7 {[%emt 0:09:30]} 22. Bxe7+ {[%emt 0:01:43]} Qxe7 {[%emt 0:00:35]} 23. Nb7+ {[%emt 0:00:54]} Kd7 {[%emt 0:04:20]} 24. Bh3+ {[%emt 0:00:28]} Be6 {[%emt 0:01:25]} 25. Rxd6+ {[%emt 0:02:11]} 1-0

[Event "DFMMLV 2024"]
[Site "Braunfels"]
[Date "2024.05.30"]
[Round "1.2"]
[White "Rieping, Lea"]
[Black "Schneider, Jana"]
[Result "1/2-1/2"]
[ECO "C24"]
[WhiteElo "1966"]
[BlackElo "2300"]
[Annotator "RC"]
[PlyCount "58"]
[EventDate "2024.05.30"]
[EventType "team-tourn"]
[EventCountry "GER"]
[SourceTitle "playchess.com"]
[Source "ChessBase"]
[SourceQuality "1"]
[TimeControl "40/5400+30:1800+30"]

1. e4 {[%emt 0:00:03]} e5 {[%emt 0:00:26]} 2. Bc4 {[%emt 0:00:08]} Nf6 {[%emt 0:00:16]} 3. d3 {[%emt 0:00:11]} c6 {[%emt 0:03:37]} 4. Nf3 {[%emt 0:03:30]} d5 {[%emt 0:00:12]} 5. exd5 {[%emt 0:00:06]} cxd5 {[%emt 0:00:12]} 6. Bb3 {[%emt 0:01:14]} Bb4+ {[%emt 0:03:50]} 7. Bd2 {[%emt 0:06:13]} Bxd2+ {[%emt 0:00:47]} 8. Qxd2 {[%emt 0:00:10]} Nc6 {[%emt 0:01:10]} 9. Nc3 {[%emt 0:04:40]} O-O {[%emt 0:01:58]} 10. O-O-O {[%emt 0:03:02]} Bg4 {[%emt 0:03:37]} 11. h3 {[%emt 0:00:47]} Bxf3 {[%emt 0:00:19]} 12. gxf3 {[%emt 0:00:05]} Qd6 {[%emt 0:06:29]} 13. Ne2 {[%emt 0:10:00]} a5 {[%emt 0:05:41]} 14. a4 {[%emt 0:13:11]} Rfc8 {[%emt 0:02:36]} 15. d4 {[%emt 0:06:26]} e4 {[%emt 0:07:34]} 16. Qf4 {[%emt 0:11:41]} Qd8 {[%emt 0:08:19]} 17. fxe4 {[%emt 0:12:38]} Nxe4 {[%emt 0:01:26]} 18. Rhg1 {[%emt 0:09:17]} g6 {[%emt 0:05:20]} 19. h4 {[%emt 0:01:57]} Nb4 {[%emt 0:01:34]} 20. h5 {[%emt 0:01:45]} Ra6 {[%emt 0:05:07]} 21. hxg6 {[%emt 0:00:39]} hxg6 {[%emt 0:00:11]} 22. Kb1 {[%emt 0:06:11]} Rf6 {[%emt 0:04:12]} 23. Qh6 {[%emt 0:00:17]} Qf8 {[%emt 0:00:37]} 24. Qxf8+ {[%emt 0:00:41]} Kxf8 {[%emt 0:00:07]} 25. f4 {[%emt 0:00:12]} Re8 {[%emt 0:02:26]} 26. c3 {[%emt 0:00:55]} Nf2 {[%emt 0:01:25]} 27. Rd2 {[%emt 0:00:21]} Ne4 {[%emt 0:07:50]} 28. Rdd1 {[%emt 0:00:11]} Nf2 {[%emt 0:01:46]} 29. Rd2 {[%emt 0:00:05]} Ne4 {[%emt 0:25:56]} 1/2-1/2

[Event "DFMMLV 2024"]
[Site "Braunfels"]
[Date "2024.05.30"]
[Round "1.3"]
[White "Hrebenshchykova, Yelyzaveta"]
[Black "Kramer, Helga"]
[Result "1-0"]
[ECO "B01"]
[WhiteElo "2272"]
[BlackElo "2092"]
[Annotator "RC"]
[PlyCount "51"]
[EventDate "2024.05.30"]
[EventType "team-tourn"]
[EventCountry "GER"]
[SourceTitle "playchess.com"]
[Source "ChessBase"]
[SourceQuality "1"]
[TimeControl "40/5400+30:1800+30"]

1. e4 {[%emt 0:00:03]} d5 {[%emt 0:00:19]} 2. exd5 {[%emt 0:00:06]} Qxd5 {[%emt 0:00:07]} 3. Nc3 {[%emt 0:00:32]} Qd6 {[%emt 0:00:35]} 4. d4 {[%emt 0:01:57]} Nf6 {[%emt 0:03:50]} 5. Nf3 {[%emt 0:01:25]} Bg4 {[%emt 0:04:18]} 6. h3 {[%emt 0:06:34]} Bf5 {[%emt 0:06:37]} 7. Ne5 {[%emt 0:06:45]} c6 {[%emt 0:14:07]} 8. g4 {[%emt 0:23:55]} Be6 {[%emt 0:05:32]} 9. Bg2 {[%emt 0:00:05]} Nbd7 {[%emt 0:12:39]} 10. f4 {[%emt 0:01:39]} g6 {[%emt 0:01:28]} 11. O-O {[%emt 0:05:08]} h5 {[%emt 0:07:22]} 12. f5 {[%emt 0:08:50]} gxf5 {[%emt 0:00:20]} 13. gxf5 {[%emt 0:00:03]} Bd5 {[%emt 0:01:10]} 14. Nxd5 {[%emt 0:00:52]} Nxe5 {[%emt 0:01:16]} 15. dxe5 {[%emt 0:05:02]} Qd8 {[%emt 0:05:19]} 16. Nxf6+ {[%emt 0:01:51]} exf6 {[%emt 0:00:13]} 17. Qxd8+ {[%emt 0:01:33]} Rxd8 {[%emt 0:01:06]} 18. exf6 {[%emt 0:00:04]} Bc5+ {[%emt 0:00:23]} 19. Kh1 {[%emt 0:00:05]} Bd4 {[%emt 0:06:17]} 20. Bg5 {[%emt 0:00:55]} O-O {[%emt 0:01:45]} 21. c3 {[%emt 0:00:27]} Bb6 {[%emt 0:04:04]} 22. Rad1 {[%emt 0:00:20]} Kh7 {[%emt 0:02:43]} 23. Bf3 {[%emt 0:00:28]} Rfe8 {[%emt 0:03:45]} 24. Rxd8 {[%emt 0:01:26]} Rxd8 {[%emt 0:00:22]} 25. Bxh5 {[%emt 0:00:05]} Rd7 {[%emt 0:01:52]} 26. Re1 {[%emt 0:01:18]} 1-0

[Event "DFMMLV 2024"]
[Site "Braunfels"]
[Date "2024.05.30"]
[Round "1.5"]
[White "Vidonyak, Nellya"]
[Black "Aden, Dagmar"]
[Result "1-0"]
[ECO "D35"]
[WhiteElo "2098"]
[BlackElo "1875"]
[Annotator "NA RC"]
[PlyCount "93"]
[EventDate "2024.05.30"]
[EventType "team-tourn"]
[EventCountry "GER"]
[SourceTitle "playchess.com"]
[Source "ChessBase"]
[SourceQuality "1"]
[TimeControl "40/5400+30:1800+30"]

1. d4 {[%emt 0:00:04]} d5 {[%emt 0:00:20]} 2. c4 {[%emt 0:00:18]} e6 {[%emt 0:00:10]} 3. Nc3 {[%emt 0:00:09]} Nf6 {[%emt 0:00:08]} 4. Nf3 {[%emt 0:00:23]} Nbd7 {[%emt 0:01:16]} 5. cxd5 {[%emt 0:00:54]} exd5 {[%emt 0:00:12]} 6. Bg5 {[%emt 0:01:12]} c6 {[%emt 0:03:47]} 7. e3 {[%emt 0:00:52]} Be7 {[%emt 0:02:53]} 8. Bd3 {[%emt 0:00:25]} h6 {[%emt 0:00:44]} 9. Bf4 {[%emt 0:03:08]} O-O {[%emt 0:03:34]} 10. h3 {[%emt 0:00:31]} Re8 {[%emt 0:01:50]} 11. O-O {[%emt 0:00:25]} Nf8 {[%emt 0:02:14]} 12. Rc1 {[%emt 0:03:30]} Bd6 {[%emt 0:02:32]} 13. Be5 {[%emt 0:04:00]} Bxe5 {[%emt 0:03:54]} 14. Nxe5 {[%emt 0:01:28]} N6d7 {[%emt 0:07:29]} 15. Nf3 {[%emt 0:00:32]} Nf6 {[%emt 0:01:50]} 16. b4 {[%emt 0:01:38]} a6 {[%emt 0:06:02]} 17. a4 {[%emt 0:00:13]} Qe7 {[%emt 0:02:17]} 18. b5 {[%emt 0:00:33]} axb5 {[%emt 0:00:20]} 19. axb5 {[%emt 0:00:06]} Bd7 {[%emt 0:02:40]} 20. Ne5 {[%emt 0:03:15]} c5 {[%emt 0:06:38]} 21. Nxd7 {[%emt 0:08:16]} N8xd7 {[%emt 0:00:27]} 22. dxc5 {[%emt 0:02:17]} Nxc5 {[%emt 0:01:08]} 23. Bb1 {[%emt 0:00:32]} Red8 {[%emt 0:03:09]} 24. Ne2 {[%emt 0:06:39]} Ne6 {[%emt 0:04:16]} 25. Qb3 {[%emt 0:08:40]} Ra3 {[%emt 0:07:48]} 26. Qb2 {[%emt 0:01:00]} Rda8 {[%emt 0:04:38]} 27. Rfd1 {[%emt 0:00:44]} R3a4 {[%emt 0:02:32]} 28. Qe5 {[%emt 0:03:26]} Qb4 {[%emt 0:08:34]} 29. Nc3 {[%emt 0:04:35]} R4a5 {[%emt 0:03:06]} 30. Nxd5 {[%emt 0:07:21]} Nxd5 {[%emt 0:00:20]} 31. Rxd5 {[%emt 0:00:33]} Ra3 {[%emt 0:06:21]} 32. Bf5 {[%emt 0:04:17]} Nf8 {[%emt 0:02:04]} 33. Rcd1 {[%emt 0:05:37]} Ra2 {[%emt 0:01:18]} 34. Rb1 {[%emt 0:04:16]} Qc4 {[%emt 0:02:21]} 35. Bd3 {[%emt 0:01:24]} Qh4 {[%emt 0:01:06]} 36. g3 {[%emt 0:00:31]} Qa4 {[%emt 0:01:31]} 37. Rd4 {[%emt 0:01:44]} Qa5 {[%emt 0:01:24]} 38. Bc4 {[%emt 0:02:34]} Ra1 {[%emt 0:01:47]} 39. Rdd1 {[%emt 0:03:16]} Rxb1 {[%emt 0:00:26]} 40. Rxb1 {[%emt 0:00:02]} Rd8 {[%emt 0:03:02]} 41. Qe7 {[%emt 0:32:15]} Qd2 {[%emt 0:04:49]} 42. Qxf7+ {[%emt 0:00:00]} Kh7 {[%emt 0:00:14]} 43. Bb3 {[%emt 0:00:00]} Qd7 {[%emt 0:03:32]} 44. Qg8+ {[%emt 0:00:00]} Kg6 {[%emt 0:00:10]} 45. Rd1 {[%emt 0:00:00]} Qe7 {[%emt 0:01:58]} 46. Qf7+ {[%emt 0:00:00]} Qxf7 {[%emt 0:00:44]} 47. Bxf7+ {[%emt 0:00:00]} 1-0

[Event "DFMMLV 2024"]
[Site "Braunfels"]
[Date "2024.05.30"]
[Round "1.6"]
[White "Hielscher, Ursula"]
[Black "Wagner, Margarethe"]
[Result "*"]
[ECO "E45"]
[WhiteElo "1829"]
[BlackElo "2011"]
[Annotator "RC"]
[PlyCount "86"]
[EventDate "2024.05.30"]
[EventType "team-tourn"]
[EventCountry "GER"]
[SourceTitle "playchess.com"]
[Source "ChessBase"]
[SourceQuality "1"]
[TimeControl "40/5400+30:1800+30"]

1. d4 {[%emt 0:00:06]} Nf6 {[%emt 0:00:04]} 2. c4 {[%emt 0:00:18]} e6 {[%emt 0:00:10]} 3. Nc3 {[%emt 0:00:09]} Bb4 {[%emt 0:00:46]} 4. e3 {[%emt 0:00:26]} b6 {[%emt 0:00:46]} 5. Nge2 {[%emt 0:00:18]} Ba6 {[%emt 0:05:25]} 6. a3 {[%emt 0:01:24]} Bxc3+ {[%emt 0:01:26]} 7. Nxc3 {[%emt 0:00:08]} O-O {[%emt 0:09:11]} 8. Bd3 {[%emt 0:02:00]} d5 {[%emt 1:16:42]} 9. b3 {[%emt 0:00:43]} Nbd7 {[%emt 0:02:26]} 10. O-O {[%emt 0:03:54]} c5 {[%emt 0:02:35]} 11. Bb2 {[%emt 0:09:55]} dxc4 {[%emt 0:05:43]} 12. bxc4 {[%emt 0:00:22]} cxd4 {[%emt 0:01:36]} 13. exd4 {[%emt 0:00:14]} Bb7 {[%emt 0:16:45]} 14. Qe2 {[%emt 0:07:38]} Re8 {[%emt 0:03:50]} 15. f4 {[%emt 0:01:14]} Nf8 {[%emt 0:01:39]} 16. Nb1 {[%emt 0:02:56]} Ng6 {[%emt 0:06:22]} 17. Nd2 {[%emt 0:13:31]} Qd6 {[%emt 0:02:46]} 18. g3 {[%emt 0:08:18]} Qc6 {[%emt 0:03:17]} 19. Nf3 {[%emt 0:00:10]} Ne4 {[%emt 0:09:11]} 20. Rae1 {[%emt 0:07:03]} Nf6 {[%emt 0:06:35]} 21. h3 {[%emt 0:03:18]} Nh5 {[%emt 0:02:24]} 22. Kh2 {[%emt 0:00:53]} Qd6 {[%emt 0:01:01]} 23. Ne5 {[%emt 0:05:58]} Nf6 {[%emt 0:02:36]} 24. Rf2 {[%emt 0:03:46]} Rad8 {[%emt 0:11:54]} 25. h4 {[%emt 0:08:31]} Nd7 {[%emt 0:01:05]} 26. Bb1 {[%emt 0:02:22]} Ndxe5 {[%emt 0:01:26]} 27. fxe5 {[%emt 0:18:25]} Qc7 {[%emt 0:01:06]} 28. Bd3 {[%emt 0:03:54]} Qd7 {[%emt 0:00:30]} 29. h5 {[%emt 0:00:53]} Ne7 {[%emt 0:01:13]} 30. Qg4 {[%emt 0:12:54]} g6 {[%emt 0:01:34]} 31. Qg5 {[%emt 0:02:35]} Nf5 {[%emt 0:01:54]} 32. Rf4 {[%emt 0:04:18]} h6 {[%emt 0:01:32]} 33. Qg4 {[%emt 0:00:27]} g5 {[%emt 0:00:30]} 34. Bxf5 {[%emt 0:01:33]} exf5 {[%emt 0:00:20]} 35. Rxf5 {[%emt 0:00:34]} Qc7 {[%emt 0:00:55]} 36. Qe2 {[%emt 0:01:11]} Ba6 {[%emt 0:00:38]} 37. Rc1 {[%emt 0:01:11]} Rc8 {[%emt 0:00:18]} 38. Rf6 {[%emt 0:00:19]} Re6 {[%emt 0:03:23]} 39. Rxe6 {[%emt 0:02:05]} fxe6 {[%emt 0:00:01]} 40. Qe4 {[%emt 0:00:28]} Bxc4 {[%emt 0:00:59]} 41. Rc2 {[%emt 0:31:18]} Qf7 {[%emt 0:31:09]} 42. Qg4 {[%emt 0:00:00]} Rf8 {[%emt 0:00:00]} 43. Bc1 {[%emt 0:00:00]} Qf1 {[%emt 0:00:00]} *

[Event "DFMMLV 2024"]
[Site "Braunfels"]
[Date "2024.05.30"]
[Round "1.7"]
[White "Horvath, Maria"]
[Black "Grabowski, Petra"]
[Result "0-1"]
[ECO "D59"]
[WhiteElo "1929"]
[BlackElo "1791"]
[Annotator "NA RC"]
[PlyCount "80"]
[EventDate "2024.05.30"]
[EventType "team-tourn"]
[EventCountry "GER"]
[SourceTitle "playchess.com"]
[Source "ChessBase"]
[SourceQuality "1"]
[TimeControl "40/5400+30:1800+30"]

1. d4 {[%emt 0:00:02]} d5 {[%emt 0:00:02]} 2. c4 {[%emt 0:00:04]} e6 {[%emt 0:00:07]} 3. Nc3 {[%emt 0:00:03]} Nf6 {[%emt 0:00:06]} 4. Bg5 {[%emt 0:00:04]} Be7 {[%emt 0:00:07]} 5. e3 {[%emt 0:00:06]} O-O {[%emt 0:00:31]} 6. Nf3 {[%emt 0:00:09]} h6 {[%emt 0:00:23]} 7. Bh4 {[%emt 0:00:33]} b6 {[%emt 0:00:39]} 8. cxd5 {[%emt 0:00:28]} Nxd5 {[%emt 0:00:45]} 9. Bxe7 {[%emt 0:00:29]} Qxe7 {[%emt 0:00:20]} 10. Bd3 {[%emt 0:02:01]} Nxc3 {[%emt 0:17:13]} 11. bxc3 {[%emt 0:02:13]} Bb7 {[%emt 0:01:11]} 12. O-O {[%emt 0:05:16]} Nd7 {[%emt 0:03:07]} 13. Re1 {[%emt 0:04:44]} c5 {[%emt 0:08:47]} 14. e4 {[%emt 0:05:41]} Rac8 {[%emt 0:12:57]} 15. Bb5 {[%emt 0:07:34]} Rfd8 {[%emt 0:10:41]} 16. Qb3 {[%emt 0:06:44]} Nf6 {[%emt 0:05:47]} 17. d5 {[%emt 0:07:51]} c4 {[%emt 0:13:16]} 18. Bxc4 {[%emt 0:04:17]} Qc7 {[%emt 0:00:37]} 19. dxe6 {[%emt 0:08:51]} Qxc4 {[%emt 0:00:53]} 20. Qxc4 {[%emt 0:00:05]} Rxc4 {[%emt 0:00:06]} 21. exf7+ {[%emt 0:00:03]} Kf8 {[%emt 0:03:30]} 22. Nd4 {[%emt 0:03:53]} Kxf7 {[%emt 0:06:24]} 23. e5 {[%emt 0:00:34]} Ne4 {[%emt 0:04:54]} 24. f3 {[%emt 0:09:37]} Nxc3 {[%emt 0:03:34]} 25. Nf5 {[%emt 0:00:28]} Rc7 {[%emt 0:03:56]} 26. Nd6+ {[%emt 0:06:05]} Ke6 {[%emt 0:01:18]} 27. Kf2 {[%emt 0:01:35]} Nd5 {[%emt 0:00:38]} 28. Nb5 {[%emt 0:00:40]} Rc2+ {[%emt 0:01:38]} 29. Kg3 {[%emt 0:00:20]} Ne7 {[%emt 0:00:18]} 30. Rad1 {[%emt 0:08:12]} Nf5+ {[%emt 0:00:07]} 31. Kh3 {[%emt 0:01:06]} Rdd2 {[%emt 0:00:09]} 32. Rxd2 {[%emt 0:01:21]} Rxd2 {[%emt 0:00:01]} 33. a4 {[%emt 0:01:55]} Bc6 {[%emt 0:01:19]} 34. Nxa7 {[%emt 0:02:40]} Bxa4 {[%emt 0:00:10]} 35. Re4 {[%emt 0:00:59]} Bd7 {[%emt 0:00:48]} 36. g4 {[%emt 0:00:57]} Ne7 {[%emt 0:00:22]} 37. Rb4 {[%emt 0:02:35]} Nd5 {[%emt 0:00:13]} 38. Rb3 {[%emt 0:00:42]} g5 {[%emt 0:00:17]} 39. f4 {[%emt 0:02:02]} Nxf4+ {[%emt 0:00:11]} 40. Kg3 {[%emt 0:00:04]} Rd3+ {[%emt 0:00:19]} 0-1

[Event "DFMMLV 2024"]
[Site "Braunfels"]
[Date "2024.05.30"]
[Round "1.9"]
[White "Rogozenco, Teodora"]
[Black "Voicu-Jagodzinsky, Carmen"]
[Result "0-1"]
[ECO "D59"]
[WhiteElo "1993"]
[BlackElo "2228"]
[Annotator "RC"]
[PlyCount "76"]
[EventDate "2024.05.30"]
[EventType "team-tourn"]
[EventCountry "GER"]
[SourceTitle "playchess.com"]
[Source "ChessBase"]
[SourceQuality "1"]
[TimeControl "40/5400+30:1800+30"]

1. d4 {[%emt 0:00:03]} Nf6 {[%emt 0:00:05]} 2. c4 {[%emt 0:00:06]} e6 {[%emt 0:00:04]} 3. Nc3 {[%emt 0:00:06]} d5 {[%emt 0:00:04]} 4. Bg5 {[%emt 0:00:12]} Be7 {[%emt 0:00:05]} 5. e3 {[%emt 0:00:12]} O-O {[%emt 0:00:09]} 6. Nf3 {[%emt 0:00:11]} h6 {[%emt 0:00:13]} 7. Bh4 {[%emt 0:00:10]} b6 {[%emt 0:00:17]} 8. cxd5 {[%emt 0:00:16]} Nxd5 {[%emt 0:00:22]} 9. Bxe7 {[%emt 0:00:18]} Qxe7 {[%emt 0:00:11]} 10. Nxd5 {[%emt 0:00:19]} exd5 {[%emt 0:00:04]} 11. Rc1 {[%emt 0:00:16]} Be6 {[%emt 0:00:31]} 12. Be2 {[%emt 0:04:50]} Rc8 {[%emt 0:03:07]} 13. O-O {[%emt 0:03:16]} c5 {[%emt 0:00:27]} 14. dxc5 {[%emt 0:00:39]} bxc5 {[%emt 0:00:21]} 15. b3 {[%emt 0:06:39]} a5 {[%emt 0:04:20]} 16. Bb5 {[%emt 0:03:54]} Nd7 {[%emt 0:07:52]} 17. Qd2 {[%emt 0:13:26]} Nf6 {[%emt 0:02:14]} 18. Ne5 {[%emt 0:15:12]} Qb7 {[%emt 0:15:09]} 19. Qd3 {[%emt 0:11:16]} Ne4 {[%emt 0:08:26]} 20. h3 {[%emt 0:04:29]} Nd6 {[%emt 0:02:13]} 21. Ba4 {[%emt 0:00:42]} Rc7 {[%emt 0:05:13]} 22. Rfd1 {[%emt 0:06:44]} Rac8 {[%emt 0:09:31]} 23. Qe2 {[%emt 0:00:20]} Qb4 {[%emt 0:05:50]} 24. Qa6 {[%emt 0:00:57]} c4 {[%emt 0:13:18]} 25. Bc6 {[%emt 0:14:37]} Qc5 {[%emt 0:08:20]} 26. bxc4 {[%emt 0:00:17]} dxc4 {[%emt 0:01:13]} 27. Bf3 {[%emt 0:03:21]} Qxe5 {[%emt 0:08:31]} 28. Rxd6 {[%emt 0:00:15]} c3 {[%emt 0:00:33]} 29. a3 {[%emt 0:05:48]} g6 {[%emt 0:02:23]} 30. Rb6 {[%emt 0:03:40]} Rc5 {[%emt 0:00:44]} 31. Bc6 {[%emt 0:01:27]} Qc7 {[%emt 0:01:56]} 32. Bb5 {[%emt 0:00:32]} c2 {[%emt 0:01:02]} 33. Bd3 {[%emt 0:00:07]} Qe5 {[%emt 0:00:53]} 34. Bxg6 {[%emt 0:00:19]} Rd8 {[%emt 0:00:39]} 35. Bd3 {[%emt 0:00:16]} Qc3 {[%emt 0:00:15]} 36. Be2 {[%emt 0:00:31]} Qd2 {[%emt 0:00:19]} 37. Rxe6 {[%emt 0:00:45]} Qxc1+ {[%emt 0:00:01]} 38. Kh2 {[%emt 0:00:04]} Qb2 {[%emt 0:00:32]} 0-1

[Event "DFMMLV 2024"]
[Site "Braunfels"]
[Date "2024.05.30"]
[Round "1.10"]
[White "Kulovana, Eva"]
[Black "Brandt, Carina"]
[Result "1-0"]
[ECO "C08"]
[WhiteElo "2165"]
[BlackElo "2038"]
[Annotator "RC"]
[PlyCount "111"]
[EventDate "2024.05.30"]
[EventType "team-tourn"]
[EventCountry "GER"]
[SourceTitle "playchess.com"]
[Source "ChessBase"]
[SourceQuality "1"]
[TimeControl "40/5400+30:1800+30"]

1. e4 {[%emt 0:00:05]} e6 {[%emt 0:00:07]} 2. d4 {[%emt 0:00:07]} d5 {[%emt 0:00:11]} 3. Nd2 {[%emt 0:00:18]} c5 {[%emt 0:00:09]} 4. exd5 {[%emt 0:00:20]} exd5 {[%emt 0:00:08]} 5. Ngf3 {[%emt 0:00:27]} Nf6 {[%emt 0:00:17]} 6. Bb5+ {[%emt 0:00:20]} Bd7 {[%emt 0:00:07]} 7. Bxd7+ {[%emt 0:00:08]} Nbxd7 {[%emt 0:00:06]} 8. O-O {[%emt 0:00:35]} Be7 {[%emt 0:00:34]} 9. dxc5 {[%emt 0:00:36]} a5 {[%emt 0:00:37]} 10. Nb1 {[%emt 0:06:26]} O-O {[%emt 0:03:46]} 11. Nc3 {[%emt 0:08:30]} Nxc5 {[%emt 0:01:02]} 12. Be3 {[%emt 0:13:00]} a4 {[%emt 0:03:52]} 13. Rb1 {[%emt 0:11:24]} Re8 {[%emt 0:15:19]} 14. Bd4 {[%emt 0:00:52]} Nce4 {[%emt 0:04:54]} 15. Qd3 {[%emt 0:03:57]} Qa5 {[%emt 0:08:09]} 16. Rfd1 {[%emt 0:10:29]} Rac8 {[%emt 0:05:25]} 17. Nd2 {[%emt 0:14:11]} Bb4 {[%emt 0:07:19]} 18. Ndxe4 {[%emt 0:09:22]} dxe4 {[%emt 0:08:39]} 19. Qg3 {[%emt 0:00:35]} Nh5 {[%emt 0:00:49]} 20. Qe3 {[%emt 0:04:59]} f5 {[%emt 0:07:18]} 21. Bb6 {[%emt 0:02:56]} Qe5 {[%emt 0:00:35]} 22. Nxa4 {[%emt 0:01:31]} Bd6 {[%emt 0:03:10]} 23. g3 {[%emt 0:00:52]} Kh8 {[%emt 0:09:25]} 24. Qb3 {[%emt 0:01:58]} Rc6 {[%emt 0:06:11]} 25. Bd4 {[%emt 0:03:28]} Qe7 {[%emt 0:00:17]} 26. Nc3 {[%emt 0:00:33]} f4 {[%emt 0:03:00]} 27. Nd5 {[%emt 0:02:07]} Qd7 {[%emt 0:00:38]} 28. gxf4 {[%emt 0:02:04]} Bxf4 {[%emt 0:06:12]} 29. Nxf4 {[%emt 0:00:50]} Nxf4 {[%emt 0:00:11]} 30. Kh1 {[%emt 0:00:42]} Rd6 {[%emt 0:04:21]} 31. Qe3 {[%emt 0:01:07]} Nd5 {[%emt 0:01:31]} 32. Qg5 {[%emt 0:00:31]} h6 {[%emt 0:01:26]} 33. Qg3 {[%emt 0:00:40]} Rg8 {[%emt 0:00:23]} 34. Be5 {[%emt 0:00:26]} Rc6 {[%emt 0:00:17]} 35. Rd2 {[%emt 0:00:30]} Qe6 {[%emt 0:00:28]} 36. Rbd1 {[%emt 0:00:22]} e3 {[%emt 0:00:50]} 37. fxe3 {[%emt 0:00:30]} Ne7 {[%emt 0:00:27]} 38. Rd6 {[%emt 0:00:23]} Qxa2 {[%emt 0:00:25]} 39. Rxc6 {[%emt 0:00:53]} Nxc6 {[%emt 0:00:02]} 40. Bc3 {[%emt 0:00:20]} Kh7 {[%emt 0:00:31]} 41. Rd7 {[%emt 0:02:53]} Qb1+ {[%emt 0:02:08]} 42. Qg1 {[%emt 0:00:14]} Qxg1+ {[%emt 0:01:42]} 43. Kxg1 {[%emt 0:00:06]} b5 {[%emt 0:01:13]} 44. Rb7 {[%emt 0:00:39]} b4 {[%emt 0:01:15]} 45. Bxb4 {[%emt 0:01:21]} Ne5 {[%emt 0:00:13]} 46. Bc3 {[%emt 0:03:02]} Nc4 {[%emt 0:00:13]} 47. Bd4 {[%emt 0:01:06]} Kg6 {[%emt 0:00:09]} 48. b4 {[%emt 0:03:27]} Kf5 {[%emt 0:01:40]} 49. Rc7 {[%emt 0:03:47]} Nd2 {[%emt 0:00:59]} 50. Kf2 {[%emt 0:02:06]} g5 {[%emt 0:00:14]} 51. Ke2 {[%emt 0:00:39]} Ne4 {[%emt 0:00:07]} 52. b5 {[%emt 0:02:11]} Kg4 {[%emt 0:00:52]} 53. b6 {[%emt 0:01:10]} Rb8 {[%emt 0:00:50]} 54. c4 {[%emt 0:01:15]} Kh3 {[%emt 0:01:03]} 55. c5 {[%emt 0:01:43]} Kxh2 {[%emt 0:00:10]} 56. c6 {[%emt 0:02:08]} 1-0